bitfinex/quotes_SOLUSD_20250321
["timestamp","ask_amount","ask_price","bid_price","bid_amount"]
[1742557082762,0.56864628,126.34,126.29,1.636]
[1742557082980,76.88749442,126.35,126.29,313.636]
[1742557082981,14.94886323,126.3,126.29,313.636]
[1742557083194,14.94886323,126.3,126.29,312.0]
[1742557083700,14.94886323,126.31,126.29,312.0]
[1742557085393,14.94886323,126.3,126.29,312.0]
[1742557086272,14.94886323,126.3,126.28,0.063]
[1742557086596,7.9167,126.32,126.28,0.063]
[1742557086597,14.94886323,126.29,126.28,0.063]
[1742557089188,25.0102415,126.29,126.28,0.063]
[1742557089390,14.94886323,126.29,126.28,0.063]
[1742557093576,24.44159522,126.29,126.28,0.063]
[1742557093776,14.94886323,126.29,126.28,0.063]
[1742557095202,14.94886323,126.29,126.28,312.063]
[1742557096207,34.94886323,126.31,126.28,7.9818]
[1742557096438,34.94886323,126.31,126.28,0.063]
[1742557096784,14.94886323,126.3,126.28,0.063]
[1742557096990,14.94886323,126.29,126.28,0.063]
[1742557098107,24.44159522,126.29,126.28,0.063]
[1742557098610,22.86706323,126.29,126.28,0.063]
[1742557098813,14.94886323,126.29,126.28,0.063]
[1742557099016,22.86666323,126.3,126.28,0.063]
[1742557099310,22.86666323,126.3,126.28,312.063]
[1742557099511,14.94886323,126.3,126.28,312.063]
[1742557099717,22.86646323,126.3,126.28,312.063]
[1742557100103,14.94886323,126.3,126.28,312.063]
[1742557100795,42.86606323,126.31,126.28,312.063]
[1742557101618,14.94886323,126.3,126.28,312.063]
[1742557103418,14.94886323,126.33,126.29,6.2707]
[1742557103723,0.03,126.34,126.3,18.64964886]
[1742557103928,0.03,126.34,126.3,33.59851209]
[1742557104115,0.03,126.34,126.32,7.9164]
[1742557106330,0.03,126.34,126.32,22.86526323]
[1742557106628,0.03,126.34,126.33,313.6169]
[1742557107534,14.97886323,126.34,126.33,312.0]
[1742557107727,14.97886323,126.34,126.3,114.15784886]
[1742557108031,14.94886323,126.33,126.3,87.5909]
[1742557108419,14.97886323,126.34,126.3,95.5084]
[1742557108623,0.03,126.34,126.3,110.45726323]
[1742557110638,0.03,126.34,126.3,422.45726323]
[1742557111116,14.97886323,126.34,126.3,95.5084]
[1742557112131,0.03,126.34,126.3,110.45726323]
[1742557112935,0.03,126.34,126.31,26.56624886]
[1742557113124,0.03,126.34,126.31,41.51511209]
[1742557114140,0.03,126.34,126.33,312.0]
[1742557114817,0.03,126.34,126.33,33.59851209]
[1742557115139,0.03,126.34,126.33,41.51421209]
[1742557115440,0.03,126.34,126.33,49.57081209]
[1742557115734,0.03,126.34,126.31,87.2115]
[1742557115936,0.03,126.34,126.32,18.64964886]
[1742557116466,0.03,126.34,126.31,87.2115]
[1742557116815,14.97886323,126.34,126.31,87.2115]
[1742557117010,22.89396323,126.34,126.31,87.2115]
[1742557117213,0.03,126.34,126.31,87.2115]
[1742557118032,0.03,126.34,126.31,399.2115]
[1742557118536,22.89416323,126.34,126.31,392.7509]
[1742557119721,7.9453,126.34,126.31,392.7509]
[1742557120843,22.89416323,126.34,126.31,312.0]
[1742557121445,22.89416323,126.34,126.3,35.10684886]
[1742557122240,0.03,126.34,126.3,50.05571209]
[1742557123422,22.89396323,126.34,126.3,25.55264886]
[1742557123744,22.89396323,126.34,126.3,0.063]
[1742557123745,14.94886323,126.32,126.3,0.063]
[1742557124442,14.94886323,126.32,126.3,312.063]
[1742557125534,22.86536323,126.32,126.3,312.063]
[1742557132940,7.9165,126.32,126.3,312.063]
[1742557133640,22.86466323,126.33,126.3,312.063]
[1742557136249,14.94886323,126.33,126.3,319.9805]
[1742557136550,7.9453,126.34,126.3,7.9805]
[1742557136758,7.9453,126.34,126.3,0.063]
[1742557137130,22.89416323,126.34,126.3,0.063]
[1742557137948,14.94886323,126.33,126.3,0.063]
[1742557138449,22.86526323,126.32,126.3,0.063]
[1742557138652,14.94886323,126.31,126.3,0.063]
[1742557139632,14.94886323,126.31,126.3,312.063]
[1742557140039,22.86526323,126.32,126.3,312.063]
[1742557140329,21.39253199,126.34,126.3,312.063]
[1742557140330,22.86496323,126.33,126.3,312.063]
[1742557142960,14.94886323,126.32,126.3,312.063]
[1742557144137,7.917,126.31,126.3,312.063]
[1742557145253,22.86586323,126.31,126.3,312.063]
[1742557145756,22.86586323,126.31,126.3,0.063]
[1742557145930,24.44039522,126.31,126.3,0.063]
[1742557147238,22.86586323,126.31,126.3,0.063]
[1742557150654,23.29234794,126.31,126.3,0.063]
[1742557151035,23.43450951,126.31,126.3,0.063]
[1742557154661,23.43450951,126.31,126.3,0.0001]
[1742557154840,22.21994628,126.29,126.28,0.0001]
[1742557155158,0.14216157,126.28,126.27,0.063]
[1742557155360,81.72647772,126.28,126.27,0.063]
[1742557156662,90.07186243,126.28,126.26,0.063]
[1742557156858,16.66555679,126.27,126.26,0.063]
[1742557157363,23.05894823,126.27,126.26,0.063]
[1742557158463,23.48543294,126.27,126.26,0.063]
[1742557159260,20.14216157,126.25,126.24,0.063]
[1742557159466,20.56864628,126.24,126.18,0.063]
[1742557159640,14.94886323,126.22,126.18,0.063]
[1742557160948,14.94886323,126.22,126.18,7.9881]
[1742557161147,34.94886323,126.24,126.19,22.87336323]
[1742557161967,14.94886323,126.24,126.19,22.87336323]
[1742557162141,14.94886323,126.24,126.22,312.0]
[1742557162767,14.94886323,126.25,126.22,312.0]
[1742557163766,14.94886323,126.24,126.22,312.0]
[1742557164350,14.94886323,126.25,126.22,312.0]
[1742557164763,14.94886323,126.26,126.22,319.9226]
[1742557165149,14.94886323,126.26,126.22,7.9226]
[1742557166861,14.97886323,126.27,126.22,7.9226]
[1742557167773,14.94886323,126.26,126.22,7.9226]
[1742557168166,14.94886323,126.26,126.24,312.0]
[1742557169370,22.86896323,126.26,126.24,312.0]
[1742557170179,14.94886323,126.26,126.24,312.0]
[1742557174158,14.97886323,126.27,126.24,312.0]
[1742557175079,14.97886323,126.27,126.24,319.9213]
[1742557175976,14.94886323,126.26,126.24,319.9213]
[1742557176364,14.94886323,126.26,126.24,312.0]
[1742557177776,14.97886323,126.27,126.24,319.9208]
[1742557177951,0.03,126.27,126.24,319.9208]
[1742557178270,0.03,126.27,126.24,22.86966323]
[1742557179267,0.03,126.27,126.24,7.9208]
[1742557179672,0.03,126.27,126.24,22.86966323]
[1742557179971,0.03,126.27,126.24,7.9208]
[1742557181276,0.03,126.27,126.26,312.0]
[1742557182467,14.97886323,126.27,126.26,312.0]
[1742557184582,22.89836323,126.27,126.26,312.0]
[1742557186783,22.89836323,126.27,126.24,0.063]
[1742557189863,22.89836323,126.27,126.25,312.0]
[1742557190779,14.97886323,126.27,126.25,312.0]
[1742557190959,0.03,126.27,126.25,319.9207]
[1742557191163,0.03,126.27,126.25,327.7286]
[1742557191565,0.03,126.27,126.25,319.8079]
[1742557195087,14.94886323,126.26,126.25,312.0]
[1742557195776,14.44886323,126.26,126.25,312.0]
[1742557196383,22.36896323,126.26,126.25,312.0]
[1742557196585,14.44886323,126.26,126.25,312.0]
[1742557196879,14.97886323,126.27,126.25,319.9207]
[1742557197080,14.97886323,126.27,126.25,7.9207]
[1742557197081,0.03,126.27,126.25,7.9207]
[1742557198188,0.03,126.26,126.25,7.9207]
[1742557198489,0.03,126.26,126.24,26.63404886]
[1742557200291,0.03,126.26,126.25,312.0]
[1742557200787,0.03,126.26,126.25,338.57034886]
[1742557201491,14.97886323,126.26,126.25,312.0]
[1742557201793,14.97886323,126.26,126.24,0.063]
[1742557202594,22.89896323,126.26,126.24,0.063]
[1742557204509,22.89896323,126.26,126.24,312.063]
[1742557205307,14.94886323,126.25,126.24,312.063]
[1742557207401,22.86956323,126.25,126.24,312.063]
[1742557207918,22.89926323,126.26,126.24,312.063]
[1742557208218,14.94886323,126.25,126.24,312.063]
[1742557209216,22.86956323,126.25,126.24,312.063]
[1742557211106,22.89916323,126.26,126.24,312.063]
[1742557211299,22.89906323,126.26,126.24,312.063]
[1742557211525,14.94886323,126.25,126.24,0.063]
[1742557212194,22.89906323,126.26,126.24,0.063]
[1742557213718,14.94886323,126.25,126.24,0.063]
[1742557214302,22.89906323,126.26,126.24,0.063]
[1742557214501,14.97886323,126.26,126.24,312.063]
[1742557216214,22.89896323,126.26,126.24,312.063]
[1742557216804,14.97886323,126.26,126.24,312.063]
[1742557217526,0.03,126.26,126.24,312.063]
[1742557218528,0.03,126.26,126.24,319.9842]
[1742557218711,0.03,126.26,126.25,33.59851209]
[1742557220229,0.03,126.26,126.25,41.51921209]
[1742557220729,0.03,126.26,126.25,49.72937366]
[1742557221713,0.03,126.26,126.25,361.72937366]
[1742557221916,0.0001,126.26,126.25,442.90675837]
[1742557223219,0.0001,126.26,126.25,442.48027366]
[1742557224024,14.94896323,126.26,126.24,0.063]
[1742557224215,14.94886323,126.25,126.24,0.063]
[1742557224424,14.94896323,126.26,126.24,0.063]
[1742557224725,0.0001,126.26,126.24,0.063]
[1742557226919,14.94896323,126.26,126.24,0.063]
[1742557227116,14.94896323,126.26,126.25,312.0]
[1742557228033,22.86906323,126.26,126.25,312.0]
[1742557228733,22.86906323,126.26,126.24,0.063]
[1742557231624,22.86906323,126.26,126.24,312.063]
[1742557232212,0.0001,126.26,126.24,312.063]
[1742557232432,0.0001,126.26,126.24,0.063]
[1742557233314,14.94896323,126.26,126.24,0.063]
[1742557234532,22.86916323,126.26,126.24,0.063]
[1742557235029,0.0001,126.26,126.24,0.063]
[1742557235431,0.0001,126.26,126.25,312.0]
[1742557238433,0.0001,126.26,126.25,319.9207]
[1742557238733,0.0001,126.26,126.25,353.51921209]
[1742557246342,0.0001,126.26,126.25,334.86956323]
[1742557246637,0.0001,126.26,126.25,353.51921209]
[1742557249340,0.0001,126.26,126.25,442.57425837]
[1742557249930,0.0001,126.26,126.25,446.54841755]
[1742557250245,0.0001,126.26,126.25,442.57425837]
[1742557252047,0.0001,126.27,126.26,34.16715837]
[1742557252340,0.199062,126.28,126.27,19.07613357]
[1742557252516,0.199062,126.28,126.27,34.0249968]
[1742557252920,6.2e-05,126.28,126.27,34.0249968]
[1742557253438,6.2e-05,126.28,126.27,41.9444968]
[1742557254831,6.2e-05,126.28,126.27,122.83755837]
[1742557255034,6.2e-05,126.28,126.27,182.63301129]
[1742557255240,6.2e-05,126.28,126.27,122.83755837]
[1742557255550,6.2e-05,126.28,126.27,496.21590813]
[1742557255732,6.2e-05,126.28,126.27,494.63301129]
[1742557256947,35.45287731,126.33,126.32,18.64964886]
[1742557257944,35.45287731,126.33,126.32,26.70821043]
[1742557258137,0.03,126.34,126.32,41.65707366]
[1742557258444,0.03,126.34,126.33,18.64964886]
[1742557259723,14.97886323,126.34,126.3,6.84]
[1742557259921,14.97886323,126.34,126.29,99.40054886]
[1742557259922,14.94886323,126.32,126.29,99.40054886]
[1742557260141,14.94886323,126.31,126.27,88.67]
[1742557260336,14.94886323,126.31,126.3,312.0]
[1742557260830,14.94886323,126.32,126.3,312.0]
[1742557261348,22.86536323,126.32,126.3,312.0]
[1742557262845,22.86486323,126.33,126.3,312.0]
[1742557263241,14.94886323,126.33,126.3,312.0]
[1742557263426,0.03,126.34,126.3,22.86626323]
[1742557266138,0.03,126.34,126.31,33.59851209]
[1742557266335,0.03,126.34,126.33,312.0]
[1742557267048,0.03,126.34,126.33,18.64964886]
[1742557267654,0.03,126.34,126.33,41.51421209]
[1742557268748,0.03,126.34,126.33,18.64964886]
[1742557270050,0.03,126.34,126.33,330.64964886]
[1742557272268,14.97886323,126.34,126.3,18.64964886]
[1742557272428,14.94886323,126.32,126.28,95.5095]
[1742557272756,14.94886323,126.29,126.26,18.64964886]
[1742557272962,1.5843,126.33,126.25,0.063]
[1742557272963,14.94886323,126.28,126.25,0.063]
[1742557273343,14.94886323,126.28,126.25,7.9836]
[1742557274461,7.9178,126.3,126.25,18.71264886]
[1742557274649,14.94886323,126.29,126.25,18.71264886]
[1742557275244,23.38481374,126.29,126.26,312.0]
[1742557275552,31.30311374,126.29,126.26,312.0]
[1742557275768,23.38481374,126.28,126.26,312.0]
[1742557276839,31.30311374,126.29,126.26,312.0]
[1742557277339,23.38481374,126.29,126.26,312.0]
[1742557278566,31.30321374,126.29,126.26,312.0]
[1742557280658,31.30321374,126.29,126.26,312.063]
[1742557281254,23.38481374,126.3,126.26,26.63264886]
[1742557281439,38.12201374,126.31,126.26,31.36781374]
[1742557283039,31.30251374,126.3,126.26,7.983]
[1742557283841,31.30251374,126.3,126.26,0.063]
[1742557284242,31.30251374,126.3,126.29,312.0]
[1742557284746,31.30251374,126.3,126.26,0.063]
[1742557284946,31.30361374,126.29,126.26,0.063]
[1742557285445,23.38481374,126.29,126.26,0.063]
[1742557285758,31.30271374,126.3,126.26,0.063]
[1742557287447,23.38481374,126.28,126.26,0.063]
[1742557287755,23.38481374,126.28,126.26,312.063]
[1742557288161,23.38481374,126.27,126.26,312.063]
[1742557288742,7.9195,126.27,126.26,312.063]
[1742557290069,31.30401374,126.28,126.26,312.063]
[1742557290564,23.38481374,126.3,126.26,312.063]
[1742557290861,38.12201374,126.31,126.26,31.36791374]
[1742557292664,23.38481374,126.3,126.26,7.9831]
[1742557292861,31.30261374,126.3,126.26,0.063]
[1742557293059,23.38481374,126.28,126.26,0.063]
[1742557293645,23.38481374,126.28,126.26,312.063]
[1742557295068,31.30401374,126.28,126.26,312.063]
[1742557295254,22.8887923,126.28,126.26,312.063]
[1742557295963,7.9192,126.28,126.26,312.063]
[1742557296170,22.9181923,126.29,126.26,312.063]
[1742557296363,7.9486,126.29,126.26,0.063]
[1742557296975,0.03,126.29,126.26,7.9831]
[1742557297271,0.03,126.29,126.26,0.063]
[1742557297474,14.9995923,126.29,126.26,0.063]
[1742557298461,22.9178923,126.29,126.26,0.063]
[1742557299372,22.9178923,126.29,126.27,312.0]
[1742557299779,14.9995923,126.29,126.27,312.0]
[1742557300173,0.03,126.29,126.27,312.0]
[1742557300764,0.03,126.29,126.27,319.9195]
[1742557300959,0.03,126.29,126.27,334.8890923]
[1742557301380,0.03,126.29,126.27,319.9195]
[1742557304788,0.03,126.29,126.27,334.8890923]
[1742557305361,0.03,126.29,126.28,33.61924116]
[1742557306084,0.03,126.29,126.28,175.26625664]
[1742557306271,0.03,126.3,126.29,25.24561043]
[1742557306466,0.03,126.3,126.29,121.41520273]
[1742557306771,0.03,126.3,126.29,129.33340273]
[1742557308479,0.03,126.3,126.29,441.33340273]
[1742557309091,0.03,126.3,126.29,426.36381043]
[1742557309285,0.03,126.3,126.29,449.72297231]
[1742557309868,0.03,126.3,126.29,450.14945702]
[1742557313467,0.03,126.33,126.29,450.14945702]
[1742557313673,0.03,126.33,126.32,44.20135702]
[1742557313887,0.03,126.33,126.32,132.22135702]
[1742557315187,0.03,126.33,126.32,140.13775702]
[1742557315493,0.03,126.33,126.32,131.79487231]
[1742557316686,0.03,126.33,126.32,443.79487231]
[1742557317594,0.03,126.33,126.32,451.71127231]
[1742557320673,0.03,126.33,126.32,452.13775702]
[1742557325979,0.03,126.34,126.33,19.07613357]
[1742557326170,0.03,126.34,126.33,42.43529545]
[1742557326373,0.03,126.35,126.34,25.19133357]
[1742557326590,0.03,126.39,126.38,23.35916188]
[1742557326775,0.03,126.39,126.38,130.02881074]
[1742557327100,0.03,126.39,126.38,130.17097231]
[1742557327800,0.03,126.39,126.38,132.1791433]
[1742557327979,0.03,126.4,126.39,56.53403388]
[1742557328376,0.03,126.4,126.39,60.4034458]
[1742557328674,0.03,126.41,126.4,0.28432314]
[1742557328880,0.03,126.41,126.4,44.01654675]
[1742557329080,0.03,126.41,126.4,356.01654675]
[1742557329395,0.03,126.41,126.4,354.43529545]
[1742557329897,0.03,126.41,126.4,362.34659545]
[1742557330494,0.03,126.41,126.4,362.48875702]
[1742557331797,0.03,126.41,126.4,443.68875702]
[1742557335100,0.03,126.41,126.4,435.24907856]
[1742557339403,0.03,126.43,126.42,0.42648471]
[1742557339703,0.03,126.43,126.42,183.41675262]
[1742557339901,0.03,126.43,126.42,181.83571224]
[1742557341305,0.03,126.43,126.42,189.74581224]
[1742557341493,0.03,126.43,126.42,130.06787856]
[1742557341684,0.03,126.43,126.42,131.64895278]
[1742557342582,0.03,126.43,126.42,443.64895278]
[1742557342878,0.03,126.43,126.42,442.06787856]
[1742557346107,0.03,126.43,126.42,435.24787856]
[1742557346313,0.03,126.43,126.42,442.06787856]
[1742557354413,0.03,126.43,126.42,503.37261224]
[1742557354712,0.0001,126.43,126.42,503.37261224]
[1742557355714,0.0001,126.43,126.42,443.69467856]
[1742557357414,0.0001,126.43,126.42,442.06787856]
[1742557360821,0.0001,126.43,126.42,426.72191043]
[1742557361899,0.0001,126.43,126.42,441.64139385]
[1742557362217,0.0001,126.43,126.42,442.06787856]
[1742557378132,0.0001,126.43,126.42,442.13087856]
[1742557380525,0.0001,126.43,126.42,441.70439385]
[1742557383338,0.0001,126.43,126.42,442.13087856]
[1742557384945,0.0001,126.43,126.42,441.70439385]
[1742557386150,0.0001,126.43,126.42,442.13087856]
[1742557391947,0.0001,126.43,126.42,454.55014395]
[1742557392147,0.0001,126.44,126.43,115.33777856]
[1742557392349,0.0001,126.44,126.43,116.91859199]
[1742557392643,0.0001,126.44,126.43,124.82809199]
[1742557394258,0.0001,126.44,126.43,123.24727856]
[1742557395258,0.0001,126.44,126.43,435.24727856]
[1742557396555,0.0001,126.44,126.43,419.75914886]
[1742557396858,0.0001,126.44,126.43,426.57914886]
[1742557397446,0.0001,126.44,126.43,441.49863228]
[1742557400160,0.0001,126.44,126.43,426.57914886]
[1742557400959,0.0001,126.44,126.43,441.49863228]
[1742557401257,0.0001,126.44,126.43,441.64079385]
[1742557401465,0.0001,126.44,126.43,441.70379385]
[1742557404161,0.0001,126.44,126.43,426.64214886]
[1742557404365,0.0001,126.44,126.43,337.53264886]
[1742557405159,0.0001,126.44,126.43,312.063]
[1742557408170,0.0001,126.44,126.43,0.063]
[1742557409855,14.91958342,126.44,126.43,0.063]
[1742557411172,14.91958342,126.44,126.43,312.063]
[1742557411358,22.82838342,126.44,126.43,312.063]
[1742557411666,22.82838342,126.44,126.43,0.063]
[1742557413268,0.0001,126.44,126.43,0.063]
[1742557414669,0.0001,126.44,126.43,312.063]
[1742557415173,0.0001,126.44,126.43,319.9725]
[1742557416274,0.0001,126.44,126.43,345.44214886]
[1742557416457,0.0001,126.44,126.43,360.36163228]
[1742557416857,0.0001,126.44,126.43,441.70379385]
[1742557421979,0.0001,126.44,126.43,360.50379385]
[1742557425682,0.0001,126.44,126.43,441.70379385]
[1742557427184,0.0001,126.44,126.43,419.82214886]
[1742557427390,0.0001,126.44,126.43,411.91264886]
[1742557427682,0.0001,126.44,126.43,312.063]
[1742557427882,14.91958342,126.44,126.43,312.063]
[1742557428297,14.91958342,126.44,126.43,0.063]
[1742557429572,22.82838342,126.44,126.43,0.063]
[1742557431292,24.37818342,126.44,126.43,312.063]
[1742557431493,30.80698342,126.44,126.43,312.063]
[1742557434292,24.37818342,126.44,126.43,0.063]
[1742557434989,16.46938342,126.44,126.43,0.063]
[1742557435191,14.91958342,126.44,126.43,0.063]
[1742557435697,22.82838342,126.44,126.43,0.063]
[1742557437388,22.82838342,126.44,126.43,312.063]
[1742557437597,14.91958342,126.44,126.43,312.063]
[1742557438087,14.91958342,126.44,126.43,0.063]
[1742557438682,0.0001,126.44,126.43,0.063]
[1742557440889,0.0001,126.44,126.43,312.063]
[1742557441400,14.91958342,126.44,126.43,312.063]
[1742557441805,0.0001,126.44,126.43,312.063]
[1742557445602,14.91958342,126.44,126.43,312.063]
[1742557446386,22.82838342,126.44,126.43,312.063]
[1742557447514,14.91958342,126.44,126.43,312.063]
[1742557448509,14.91958342,126.44,126.43,0.063]
[1742557448690,0.0001,126.44,126.43,0.063]
[1742557450809,14.91958342,126.44,126.43,0.063]
[1742557451615,14.91958342,126.44,126.43,312.063]
[1742557452404,0.0001,126.44,126.43,312.063]
[1742557456216,14.91958342,126.44,126.43,312.063]
[1742557458713,0.0001,126.44,126.43,312.063]
[1742557462826,0.0001,126.44,126.43,319.9725]
[1742557463926,0.0001,126.44,126.43,312.063]
[1742557470523,0.0001,126.44,126.43,319.9725]
[1742557470711,0.0001,126.44,126.43,338.62214886]
[1742557470910,0.0001,126.44,126.43,353.54163228]
[1742557471114,0.0001,126.44,126.43,338.62214886]
[1742557471422,0.0001,126.44,126.43,319.9725]
[1742557471602,0.0001,126.44,126.43,338.62214886]
[1742557474024,0.0001,126.44,126.43,353.54163228]
[1742557475115,0.0001,126.44,126.43,338.62214886]
[1742557475504,0.0001,126.44,126.43,419.82214886]
[1742557475707,13.94958342,126.47,126.44,18.64964886]
[1742557476226,14.91948342,126.48,126.45,7.9082]
[1742557479102,14.91948342,126.48,126.47,312.0]
[1742557481326,14.91948342,126.5,126.45,7.9079]
[1742557481523,14.91948342,126.49,126.45,7.9079]
[1742557482227,14.91948342,126.48,126.45,7.9079]
[1742557483226,14.94948342,126.48,126.45,7.9079]
[1742557484254,14.91948342,126.46,126.44,26.55824886]
[1742557485128,14.91948342,126.47,126.44,26.55824886]
[1742557487329,14.91948342,126.47,126.46,312.0]
[1742557490041,22.82648342,126.47,126.46,312.0]
[1742557494119,22.82648342,126.47,126.43,18.71264886]
[1742557495024,22.82648342,126.47,126.46,0.063]
[1742557497230,22.82648342,126.47,126.46,312.063]
[1742557500250,14.94948342,126.48,126.46,0.063]
[1742557500427,0.03,126.48,126.46,0.063]
[1742557501050,14.94948342,126.48,126.46,0.063]
[1742557503251,14.94948342,126.48,126.47,312.0]
[1742557505056,0.03,126.48,126.47,312.0]
[1742557505557,0.03,126.48,126.47,319.907]
[1742557506834,0.03,126.48,126.47,338.55664886]
[1742557507752,0.03,126.48,126.47,319.907]
[1742557508153,0.03,126.48,126.47,312.0]
[1742557508328,14.94948342,126.48,126.47,312.0]
[1742557508538,22.85578342,126.48,126.46,81.263]
[1742557508855,14.91948342,126.47,126.46,81.263]
[1742557509924,22.85578342,126.48,126.46,81.263]
[1742557510651,22.85578342,126.48,126.46,0.063]
[1742557511025,14.91948342,126.47,126.46,0.063]
[1742557511463,14.91948342,126.47,126.46,312.063]
[1742557512536,14.91948342,126.47,126.46,0.063]
[1742557512852,14.94948342,126.48,126.46,0.063]
[1742557513232,22.85588342,126.48,126.46,0.063]
[1742557513932,14.91948342,126.47,126.46,0.063]
[1742557515757,7.9364,126.48,126.46,0.063]
[1742557515758,22.85588342,126.48,126.46,312.063]
[1742557516357,22.85588342,126.48,126.46,0.063]
[1742557516542,14.91948342,126.47,126.46,0.063]
[1742557517754,22.85588342,126.48,126.46,0.063]
[1742557518870,0.03,126.48,126.46,0.063]
[1742557519162,0.03,126.48,126.47,312.0]
[1742557519860,14.94948342,126.48,126.47,312.0]
[1742557522357,0.03,126.48,126.47,312.0]
[1742557525065,0.03,126.48,126.47,319.907]
[1742557528064,0.03,126.48,126.47,338.55664886]
[1742557532658,0.03,126.48,126.47,353.47613228]
[1742557533139,0.03,126.48,126.47,353.61829385]
[1742557534369,0.03,126.48,126.47,434.96045542]
[1742557534572,0.0001,126.48,126.47,435.24477856]
[1742557536854,14.94948342,126.56,126.49,0.14216157]
[1742557537060,14.94948342,126.56,126.51,33.56913228]
[1742557537358,22.85088342,126.56,126.51,33.56913228]
[1742557538256,22.85088342,126.56,126.51,41.47343228]
[1742557538648,14.91948342,126.55,126.51,41.47343228]
[1742557539782,22.82148342,126.55,126.51,41.47343228]
[1742557539968,22.82148342,126.55,126.51,122.67343228]
[1742557540175,7.902,126.55,126.54,312.0]
[1742557540351,22.85108342,126.56,126.54,312.0]
[1742557540879,22.85108342,126.56,126.51,122.67343228]
[1742557541458,0.03,126.56,126.53,18.64964886]
[1742557542557,0.03,126.56,126.53,33.56913228]
[1742557542955,0.03,126.56,126.53,18.64964886]
[1742557543570,0.03,126.56,126.53,26.55284886]
[1742557543768,0.03,126.56,126.55,312.0]
[1742557545391,0.03,126.56,126.54,18.64964886]
[1742557545981,0.03,126.56,126.54,26.55194886]
[1742557548199,0.03,126.56,126.55,312.0]
[1742557549585,0.03,126.56,126.55,319.902]
[1742557549759,0.03,126.56,126.55,338.55164886]
[1742557552696,0.03,126.56,126.55,312.0]
[1742557552988,14.94948342,126.56,126.53,81.2]
[1742557553175,14.91948342,126.55,126.53,81.2]
[1742557554261,22.85128342,126.56,126.53,81.2]
[1742557554666,22.85128342,126.56,126.52,7.9036]
[1742557554983,7.9318,126.56,126.52,7.9036]
[1742557555188,22.85128342,126.56,126.52,22.82308342]
[1742557555696,0.03,126.56,126.53,33.56913228]
[1742557555874,0.03,126.56,126.55,330.64964886]
[1742557556071,0.03,126.56,126.55,345.56913228]
[1742557557671,0.03,126.56,126.55,353.47113228]
[1742557558987,0.03,126.56,126.55,338.55164886]
[1742557559895,0.03,126.56,126.55,312.0]
[1742557569303,0.03,126.56,126.55,319.902]
[1742557569889,0.03,126.56,126.55,353.47113228]
[1742557570088,0.03,126.56,126.55,441.15299385]
[1742557570291,0.03,126.56,126.55,442.78549385]
[1742557572503,0.03,126.56,126.55,419.82184886]
[1742557572704,0.03,126.56,126.55,411.84964886]
[1742557572904,0.03,126.56,126.55,434.67113228]
[1742557573114,0.03,126.56,126.55,434.95545542]
[1742557576707,0.03,126.57,126.56,18.79181043]
[1742557576911,0.03,126.57,126.56,48.30229385]
[1742557577711,2.8732334,126.59,126.57,0.14216157]
[1742557577901,2.8732334,126.59,126.58,14.91948342]
[1742557578619,2.8732334,126.59,126.58,33.85345542]
[1742557579412,3.34e-05,126.59,126.58,115.33777856]
[1742557579621,1.5811,126.68,126.62,26.54724886]
[1742557579622,24.39478342,126.68,126.62,26.54724886]
[1742557579789,1.5811,126.68,126.63,14.91948342]
[1742557580105,14.91948342,126.67,126.64,18.64964886]
[1742557581093,14.91948342,126.67,126.66,312.0]
[1742557581290,14.91948342,126.67,126.59,96.11948342]
[1742557581291,15.06164499,126.67,126.59,96.11948342]
[1742557581591,22.81658342,126.63,126.6,25.44964886]
[1742557582389,22.81608342,126.64,126.6,25.44964886]